{"text_format":"3","workbook":"xlsx","n_sheets":1,"sheets":["Frais d’établissement"],"not_rendered":{"defined_names":1},"read":"whole","date_system":"1900"}

{"sheet":"Frais d’établissement","index":0,"n_rows":120,"n_cols":4,"rows_kept":120,"merged":[[1,1,1,3],[10,1,10,3],[17,1,17,3],[25,1,25,3],[34,1,34,3],[42,1,42,3],[50,1,50,3],[55,1,55,3],[57,1,57,3],[59,1,59,3],[60,1,60,3],[69,1,69,3],[76,1,76,3],[81,1,81,3],[82,1,82,3],[90,1,90,3],[102,1,102,3],[110,1,110,3],[115,1,115,3]]}
["FRAIS D’ÉTABLISSEMENT",null,null,"NOM DE L’ENTREPRISE"]
[null,"NOTE À LIRE AVANT D’UTILISER CETTE FEUILLE DE CALCUL\nQuasiment tous les créateurs d’entreprise sous-estiment les frais d’établissement et courent ensuite le risque de manquer de réserves de capital. Pour éviter de tomber dans ce piège, la solution consiste à adopter une approche rigoureuse lors des étapes de recherche et de planification. Notre modèle Frais d’établissement vous guidera tout au long de ce processus.\n\nCOMMENCEZ PAR ÉVALUER LES FRAIS\nCombien devrez-vous dépenser pour que votre entreprise soit opérationnelle? La clé de la précision est ici le souci du détail. Pour chaque catégorie de dépense, dressez la liste de tout ce que vous allez devoir acheter. Ces achats incluront à la fois les biens matériels (par exemple, l'équipement et les stocks) et les services (par exemple, le remaniement et les assurances). Puis déterminez où vous pouvez acheter ces biens ou services. N’hésitez pas à comparer les fournisseurs. Ne vous attardez pas seulement au prix; les conditions de paiement, la livraison, la fiabilité et le service sont également importants. "]
[]
[null,"FRAIS D’ÉTABLISSEMENT"]
[null,"IMMOBILIER"," ","MONTANT"]
[null,"Achat",null,{"v":0,"d":"0.00 $"}]
[null,"Construction",null,{"v":0,"d":"0.00 $"}]
[null,"Remaniement",null,{"v":0,"d":"0.00 $"}]
[null,"Autres",null,{"v":0,"d":"0.00 $"}]
[null,"Total",null,{"$f":"SUBTOTAL(109,Immobilier[MONTANT])","v":{"v":0,"d":"0.00 $"}}]
[]
[null,"AMÉLIORATIONS LOCATIVES"," ","MONTANT"]
[null,"Élément 1",null,{"v":0,"d":"0.00 $"}]
[null,"Élément 2",null,{"v":0,"d":"0.00 $"}]
[null,"Élément 3",null,{"v":0,"d":"0.00 $"}]
[null,"Élément 4",null,{"v":0,"d":"0.00 $"}]
[null,"Total",null,{"$f":"SUBTOTAL(109,Améliorations[MONTANT])","v":{"v":0,"d":"0.00 $"}}]
[]
[null,"BIENS D’ÉQUIPEMENT"," ","MONTANT"]
[null,"Mobilier",null,{"v":0,"d":"0.00 $"}]
[null,"Équipements",null,{"v":0,"d":"0.00 $"}]
[null,"Appareils",null,{"v":0,"d":"0.00 $"}]
[null,"Machines",null,{"v":0,"d":"0.00 $"}]
[null,"Autres",null,{"v":0,"d":"0.00 $"}]
[null,"Total",null,{"$f":"SUBTOTAL(109,Capital[MONTANT])","v":{"v":0,"d":"0.00 $"}}]
[]
[null,"LOYER ET FRAIS ADMINISTRATIFS"," ","MONTANT"]
[null,"Loyer",null,{"v":0,"d":"0.00 $"}]
[null,"Dépôts de garantie",null,{"v":0,"d":"0.00 $"}]
[null,"Frais juridiques et comptables",null,{"v":0,"d":"0.00 $"}]
[null,"Assurance payée d'avance",null,{"v":0,"d":"0.00 $"}]
[null,"Salaires avant ouverture ",null,{"v":0,"d":"0.00 $"}]
[null,"Autres",null,{"v":0,"d":"0.00 $"}]
[null,"Total",null,{"$f":"SUBTOTAL(109,Frais_administratifs[MONTANT])","v":{"v":0,"d":"0.00 $"}}]
[]
[null,"INVENTAIRE D’OUVERTURE"," ","MONTANT"]
[null,"Catégorie 1",null,{"v":0,"d":"0.00 $"}]
[null,"Catégorie 2",null,{"v":0,"d":"0.00 $"}]
[null,"Catégorie 3",null,{"v":0,"d":"0.00 $"}]
[null,"Catégorie 4",null,{"v":0,"d":"0.00 $"}]
[null,"Catégorie 5",null,{"v":0,"d":"0.00 $"}]
[null,"Total",null,{"$f":"SUBTOTAL(109,Inventaire_d’ouverture[MONTANT])","v":{"v":0,"d":"0.00 $"}}]
[]
[null,"FRAIS PUBLICITAIRES ET PROMOTIONNELS"," ","MONTANT"]
[null,"Publicité",null,{"v":0,"d":"0.00 $"}]
[null,"Affichage",null,{"v":0,"d":"0.00 $"}]
[null,"Impression",null,{"v":0,"d":"0.00 $"}]
[null,"Déplacements/loisirs",null,{"v":0,"d":"0.00 $"}]
[null,"Autres catégories",null,{"v":0,"d":"0.00 $"}]
[null,"Total",null,{"$f":"SUBTOTAL(109,Frais_promotionnels[MONTANT])","v":{"v":0,"d":"0.00 $"}}]
[]
[null,"AUTRES FRAIS"," ","MONTANT"]
[null,"Autres frais 1",null,{"v":0,"d":"0.00 $"}]
[null,"Autres frais 2",null,{"v":0,"d":"0.00 $"}]
[null,"Total",null,{"$f":"SUBTOTAL(109,Autres_dépenses[MONTANT])","v":{"v":0,"d":"0.00 $"}}]
[]
[null,"Réserve pour imprévus",null,{"v":0,"d":"0.00 $"}]
[]
[null,"Fonds de roulement ",null,{"v":0,"d":"0.00 $"}]
[]
[null,"PRÉVOYEZ UNE RÉSERVE POUR PARER AUX IMPRÉVUS\nDans la partie descriptive, expliquez comment vous avez déterminé le montant que vous allez placer dans cette réserve. \n\nDÉTERMINEZ VOTRE FLUX DE TRÉSORERIE\nVous ne pouvez pas vous lancer avec un compte bancaire vide. Vous devez disposer d’une réserve de liquidités qui couvrira vos frais lorsque vous démarrerez votre activité. Plus tard, vous réaliserez une projection de flux de trésorerie sur 12 mois. Et à ce moment-là, vous estimerez votre fonds de roulement. Pour l'instant, n’entrez rien sur cette ligne ou entrez une estimation approximative. Une fois votre flux de trésorerie déterminé, vous pourrez entrer le montant issu de vos recherches.\n\nENTREZ VOS SOURCES DE CAPITAL\nMaintenant que vous avez estimé le capital dont vous aurez besoin pour vous lancer, vous devez vous concentrer sur la partie supérieure de cette feuille de calcul. Entrez les montants que vous allez vous-même investir, les montants qui seront injectés par des partenaires ou investisseurs et les montants qui seront empruntés."]
[]
[null,"SOURCES DE CAPITAL"]
[null,"INVESTISSEMENT DU PROPRIÉTAIRE  (NOM ET % DE PARTICIPATION)"," ","MONTANT"]
[null,"Votre nom et votre pourcentage de participation",null,{"v":0,"d":"0.00 $"}]
[null,"Autre investisseur",null,{"v":0,"d":"0.00 $"}]
[null,"Autre investisseur",null,{"v":0,"d":"0.00 $"}]
[null,"Autre investisseur",null,{"v":0,"d":"0.00 $"}]
[null,"Total",null,{"$f":"SUBTOTAL(109,Investissements_des_propriétaires[MONTANT])","v":{"v":0,"d":"0.00 $"}}]
[]
[null,"PRÊTS BANCAIRES"," ","MONTANT"]
[null,"Banque 1",null,{"v":0,"d":"0.00 $"}]
[null,"Banque 2",null,{"v":0,"d":"0.00 $"}]
[null,"Banque 3",null,{"v":0,"d":"0.00 $"}]
[null,"Banque 4",null,{"v":0,"d":"0.00 $"}]
[null,"Total",null,{"$f":"SUBTOTAL(109,Prêts_bancaires[MONTANT])","v":{"v":0,"d":"0.00 $"}}]
[]
[null,"AUTRES PRÊTS"," ","MONTANT"]
[null,"Source 1",null,{"v":0,"d":"0.00 $"}]
[null,"Source 2",null,{"v":0,"d":"0.00 $"}]
[null,"Total",null,{"$f":"SUBTOTAL(109,Autres_prêts[MONTANT])","v":{"v":0,"d":"0.00 $"}}]
[]
[null,"FOURNISSEZ UNE PREUVE DE GARANTIE\nSi vous comptez utiliser ce plan pour appuyer une demande de prêt bancaire, utilisez la section située au bas de cette feuille pour entrer les actifs proposés afin de garantir le prêt et évaluer la valeur de ces éléments. Soyez prêt à fournir la preuve des valeurs de garantie que vous avez estimées."]
[]
[null,"RÉCAPITULATIF"]
[null,"SOURCE DE CAPITAL"," ","TOTAUX"]
[null,"Investissements des propriétaires et autres",null,{"$f":"Investissements_des_propriétaires[[#Totals],[MONTANT]]","v":{"v":0,"d":"0.00 $"}}]
[null,"Prêts bancaires",null,{"$f":"Prêts_bancaires[[#Totals],[MONTANT]]","v":{"v":0,"d":"0.00 $"}}]
[null,"Autres prêts",null,{"$f":"Autres_prêts[[#Totals],[MONTANT]]","v":{"v":0,"d":"0.00 $"}}]
[null,"Total",null,{"$f":"SUBTOTAL(109,Sources_du_capital[TOTAUX])","v":{"v":0,"d":"0.00 $"}}]
[]
[null,"FRAIS D’ÉTABLISSEMENT"," ","TOTAUX"]
[null,"Immobilier",null,{"$f":"Immobilier[[#Totals],[MONTANT]]","v":{"v":0,"d":"0.00 $"}}]
[null,"Améliorations locatives",null,{"$f":"Améliorations[[#Totals],[MONTANT]]","v":{"v":0,"d":"0.00 $"}}]
[null,"Biens d’équipement",null,{"$f":"Capital[[#Totals],[MONTANT]]","v":{"v":0,"d":"0.00 $"}}]
[null,"Loyer et frais administratifs",null,{"$f":"Frais_administratifs[[#Totals],[MONTANT]]","v":{"v":0,"d":"0.00 $"}}]
[null,"Inventaire d’ouverture",null,{"$f":"Inventaire_d’ouverture[[#Totals],[MONTANT]]","v":{"v":0,"d":"0.00 $"}}]
[null,"Frais publicitaires/promotionnels",null,{"$f":"Frais_promotionnels[[#Totals],[MONTANT]]","v":{"v":0,"d":"0.00 $"}}]
[null,"Autres frais",null,{"$f":"Autres_dépenses[[#Totals],[MONTANT]]","v":{"v":0,"d":"0.00 $"}}]
[null,"Réserve pour imprévus",null,{"$f":"SUM('Frais d’établissement'!$C$57)","v":{"v":0,"d":"0.00 $"}}]
[null,"Fonds de roulement",null,{"$f":"SUM('Frais d’établissement'!$C$59)","v":{"v":0,"d":"0.00 $"}}]
[null,"Total",null,{"$f":"SUBTOTAL(109,Frais_d’établissement[TOTAUX])","v":{"v":0,"d":"0.00 $"}}]
[]
[null,"GARANTIE ET NANTISSEMENT POUR LA PROPOSITION DE PRÊT"]
[null,"GARANTIE POUR L’OBTENTION DE PRÊTS","DESCRIPTION","VALEUR"]
[null,"Immobilier",null,{"v":0,"d":"0.00 $"}]
[null,"Autre garantie",null,{"v":0,"d":"0.00 $"}]
[null,"Autre garantie",null,{"v":0,"d":"0.00 $"}]
[null,"Autre garantie",null,{"v":0,"d":"0.00 $"}]
[null,"Total",null,{"$f":"SUBTOTAL(109,Garantie[VALEUR])","v":{"v":0,"d":"0.00 $"}}]
[]
[null,"PROPRIÉTAIRES"," ","  "]
[null,"Votre nom ici"]
[null,"Autre propriétaire"]
[null,"Autre propriétaire"]
[]
[null,"GARANTS DES PRÊTS (AUTRES QUE LES PROPRIÉTAIRES)"," ","  "]
[null,"Garant 1"]
[null,"Garant 2"]
[null,"Garant 3"]